bitfinex-derivatives/quotes_BNBF0:USTF0_20251203
["timestamp","ask_amount","ask_price","bid_price","bid_amount"]
[1764792782302,1.10113203,907.1,906.52,1.869]
[1764792782501,1.10113203,907.08,906.52,1.869]
[1764792782704,1.10113203,907.04,906.52,1.869]
[1764792783302,1.10113203,907.05,906.52,1.869]
[1764792784002,1.10113203,907.05,906.53,1.444]
[1764792785403,1.10113203,907.06,906.53,1.444]
[1764792787408,1.10113203,907.07,906.53,1.444]
[1764792787704,1.10113203,907.07,906.54,1.693]
[1764792788408,1.10113203,907.06,906.54,1.693]
[1764792789306,1.10113203,907.07,906.54,1.693]
[1764792792410,1.10113203,907.08,906.54,1.693]
[1764792795708,1.10113203,907.13,906.54,1.693]
[1764792798317,1.10113203,907.14,906.54,1.693]
[1764792799317,1.10113203,907.13,906.54,1.693]
[1764792801319,1.10113203,907.14,906.54,1.693]
[1764792801515,1.10113203,907.18,906.54,1.693]
[1764792802421,1.10113203,907.17,906.54,1.693]
[1764792802819,1.10113203,907.16,906.54,1.693]
[1764792804517,1.10113203,907.12,906.54,1.693]
[1764792805525,1.10113203,907.08,906.54,1.693]
[1764792806321,1.10113203,907.06,906.54,1.693]
[1764792807327,1.10113203,907.07,906.54,1.693]
[1764792808725,1.10113203,907.02,906.54,1.693]
[1764792809330,1.10113203,907.03,906.54,1.693]
[1764792809530,1.10113203,907.06,906.54,1.693]
[1764792810632,1.10113203,907.09,906.54,1.693]
[1764792811930,1.10113203,907.14,906.54,1.693]
[1764792812734,1.10113203,907.14,906.53,1.444]
[1764792814538,1.10113203,907.14,906.54,1.88]
[1764792832349,1.10113203,907.13,906.54,1.88]
[1764792834447,1.10113203,907.12,906.54,1.88]
[1764792834847,1.10113203,907.09,906.54,1.88]
[1764792835749,1.10113203,907.07,906.54,1.88]
[1764792836452,1.10113203,907.06,906.54,1.88]
[1764792837550,1.10113203,907.05,906.54,1.88]
[1764792837754,1.10113203,907.01,906.54,1.88]
[1764792837950,1.10113203,906.95,906.54,1.88]
[1764792838453,1.10113203,906.92,906.54,1.88]
[1764792839552,1.10113203,906.86,906.54,1.88]
[1764792840850,1.10113203,906.85,906.54,1.88]
[1764792841253,1.10113203,906.86,906.54,1.88]
[1764792841456,1.10113203,906.85,906.54,1.88]
[1764792842257,5.91144797,907.58,906.54,1.88]
[1764792842258,1.10113203,906.86,906.54,1.88]
[1764792843256,1.10113203,906.87,906.54,1.88]
[1764792843452,1.10113203,906.87,906.55,1.901]
[1764792845557,1.10113203,906.88,906.55,1.901]
[1764792847360,1.10113203,906.89,906.56,1.734]
[1764792851070,1.10113203,906.91,906.56,1.734]
[1764792851271,1.10113203,906.98,906.56,1.734]
[1764792852674,1.10113203,906.97,906.56,1.734]
[1764792853369,1.10113203,906.98,906.56,1.734]
[1764792859779,1.10113203,907.05,906.56,1.734]
[1764792862476,1.10113203,907.06,906.56,1.734]
[1764792863276,1.10113203,907.06,906.55,1.901]
[1764792864378,1.10113203,907.05,906.55,1.901]
[1764792865281,1.10113203,907.05,906.56,1.8]
[1764792880589,1.10113203,907.07,906.56,1.8]
[1764792880791,1.10113203,907.11,906.56,1.8]
[1764792880987,1.10113203,907.11,906.55,1.901]
[1764792881290,1.10113203,907.15,906.55,1.901]
[1764792881484,1.10113203,907.16,906.55,1.901]
[1764792881693,1.10113203,907.18,906.55,1.901]
[1764792884293,1.10113203,907.19,906.55,1.901]
[1764792884495,1.10113203,907.23,906.55,1.901]
[1764792884691,1.10113203,907.23,906.56,1.354]
[1764792884994,1.10113203,907.26,906.56,1.354]
[1764792885295,5.91144797,907.58,906.56,1.354]
[1764792885296,1.10113203,907.28,906.56,1.354]
[1764792886297,1.10113203,907.29,906.56,1.354]
[1764792887197,1.10113203,907.3,906.56,1.354]
[1764792889401,1.10113203,907.31,906.56,1.354]
[1764792890299,1.10113203,907.32,906.56,1.354]
[1764792892298,1.10113203,907.33,906.56,1.354]
[1764792894402,1.10113203,907.34,906.56,1.354]
[1764792897308,1.10113203,907.35,906.56,1.354]
[1764792901213,1.10113203,907.4,906.56,1.354]
[1764792901411,5.91144797,907.58,906.56,1.354]
[1764792901412,1.10113203,907.43,906.56,1.354]
[1764792902108,1.10113203,907.43,906.57,2.187]
[1764792906615,1.10113203,907.35,906.57,2.187]
[1764792908317,1.10113203,907.34,906.57,2.187]
[1764792910419,1.10113203,907.33,906.57,2.187]
[1764792915223,1.10113203,907.32,906.57,2.187]
[1764792917428,1.10113203,907.31,906.57,2.187]
[1764792920132,1.10113203,907.31,906.56,1.354]
[1764792920332,1.10113203,907.3,906.56,1.354]
[1764792924229,1.10113203,907.29,906.56,1.354]
[1764792927333,1.10113203,907.28,906.56,1.354]
[1764792929837,1.10113203,907.28,906.3,1.697]
[1764792930238,1.10113203,907.27,906.3,1.697]
[1764792932338,1.10113203,907.26,906.3,1.697]
[1764792933641,1.10113203,907.27,906.3,1.697]
[1764792934538,1.10113203,907.25,906.3,1.697]
[1764792936443,1.10113203,907.24,906.3,1.697]
[1764792937441,1.10113203,907.23,906.3,1.697]
[1764792938147,1.10113203,907.24,906.3,1.697]
[1764792938639,1.10113203,907.23,906.3,1.697]
[1764792939344,1.10113203,907.22,906.3,1.697]
[1764792940244,1.10113203,907.21,906.3,2.79245645]
[1764792941445,1.10113203,907.2,906.31,1.09545645]
[1764792943241,1.10113203,907.22,906.34,1.09545645]
[1764792943446,1.10113203,907.33,906.45,1.09545645]
[1764792943648,1.10113203,907.35,906.47,1.09545645]
[1764792944247,1.10113203,907.36,906.46,1.09545645]
[1764792944447,1.10113203,907.37,906.47,1.09545645]
[1764792945250,1.10113203,907.38,906.46,1.09545645]
[1764792946353,1.10113203,907.38,906.45,1.09545645]
[1764792947151,1.10113203,907.39,906.44,1.09545645]
[1764792948154,1.10113203,907.4,906.44,1.09545645]
[1764792949350,1.10113203,907.4,906.43,1.09545645]
[1764792950248,1.10113203,907.41,906.43,1.09545645]
[1764792951154,1.10113203,907.41,906.42,1.09545645]
[1764792952256,1.10113203,907.42,906.42,1.09545645]
[1764792952751,1.10113203,907.42,906.43,1.423]
[1764792955356,1.10113203,907.43,906.43,1.423]
[1764792957457,1.10113203,907.45,906.43,1.423]
[1764792958858,1.10113203,907.54,906.5,1.09545645]
[1764792959258,1.10113203,907.55,906.5,1.09545645]
[1764792959656,1.10113203,907.61,906.56,1.09545645]
[1764792959957,1.10113203,907.65,906.6,1.09545645]
[1764792960455,1.10113203,907.67,906.61,1.09545645]
[1764792961154,1.10113203,907.69,906.6,1.09545645]
[1764792961658,1.10113203,907.69,906.59,1.09545645]
[1764792962259,1.10113203,907.7,906.58,1.09545645]
[1764792963357,1.10113203,907.71,906.56,1.09545645]
[1764792963757,1.10113203,907.59,906.44,1.09545645]
[1764792964561,1.10113203,907.59,906.43,2.51845645]
[1764792965562,1.10113203,907.59,906.43,1.423]
[1764792965763,1.10113203,907.58,906.43,1.423]
[1764792965962,1.10113203,907.53,906.43,1.423]
[1764792966262,1.10113203,907.52,906.43,1.423]
[1764792967357,1.10113203,907.51,906.43,1.423]
[1764792967561,1.10113203,907.49,906.43,1.423]
[1764792967862,1.10113203,907.45,906.43,1.423]
[1764792968263,1.10113203,907.43,906.43,1.423]
[1764792968663,1.10113203,907.44,906.43,1.423]
[1764792971561,1.10113203,907.42,906.43,1.423]
[1764792971966,1.10113203,907.4,906.43,1.423]
[1764792972265,1.10113203,907.34,906.43,1.423]
[1764792973064,1.10113203,907.35,906.43,1.423]
[1764792974962,1.10113203,907.33,906.43,1.423]
[1764792975165,1.10113203,907.32,906.43,1.423]
[1764792976969,1.10113203,907.32,906.44,1.744]
[1764792977369,1.10113203,907.3,906.44,1.744]
[1764792980471,1.10113203,907.24,906.44,1.744]
[1764792981970,1.10113203,907.11,906.44,1.744]
[1764792982265,1.10113203,907.04,906.44,1.744]
[1764792983065,1.10113203,907.03,906.44,1.744]
[1764792983370,1.10113203,907.0,906.44,1.744]
[1764792983970,1.10113203,906.98,906.44,1.744]
[1764792984369,1.10113203,906.99,906.44,1.744]
[1764792984574,1.10113203,906.97,906.44,1.744]
[1764792984972,1.10113203,906.93,906.44,1.744]
[1764792985369,1.10113203,906.9,906.44,1.744]
[1764792986371,1.10113203,906.92,906.44,1.744]
[1764792987268,1.10113203,906.94,906.44,1.744]
[1764792988474,1.10113203,906.96,906.44,1.744]
[1764792989376,1.10113203,906.98,906.44,1.744]
[1764792990375,1.10113203,907.01,906.44,1.744]
[1764792991476,1.10113203,907.02,906.44,1.744]
[1764792991676,1.10113203,907.06,906.44,1.744]
[1764792992475,1.10113203,907.07,906.44,1.744]
[1764792993372,1.10113203,907.11,906.44,1.744]
[1764792993572,1.10113203,907.12,906.44,1.744]
[1764792994374,1.10113203,907.13,906.44,1.744]
[1764792996077,1.10113203,907.18,906.44,1.744]
[1764792996276,1.10113203,907.19,906.44,1.744]
[1764792996473,1.10113203,907.22,906.44,1.744]
[1764792997175,1.10113203,907.23,906.44,1.744]
[1764792998682,1.10113203,907.34,906.44,1.744]
[1764793006194,1.10113203,907.28,906.44,1.744]
[1764793006392,1.10113203,907.26,906.44,1.744]
[1764793006792,1.10113203,907.19,906.44,1.744]
[1764793007097,1.10113203,907.16,906.44,1.744]
[1764793007396,1.10113203,907.15,906.44,1.744]
[1764793007693,1.10113203,907.14,906.44,1.744]
[1764793008498,1.10113203,907.06,906.44,1.744]
[1764793009295,1.10113203,907.07,906.44,1.744]
[1764793010700,1.10113203,907.08,906.44,1.744]
[1764793012697,1.29303939,907.08,906.44,1.744]
[1764793012895,1.10113203,907.07,906.44,1.744]
[1764793013799,1.10113203,907.06,906.44,1.744]
[1764793014000,1.10113203,907.03,905.87,0.19190736]
[1764793014195,1.10113203,906.99,905.87,0.19190736]
[1764793014400,1.10113203,906.94,905.87,0.19190736]
[1764793015300,1.10113203,906.89,905.87,0.19190736]
[1764793016196,1.10113203,906.95,905.87,0.19190736]
[1764793016998,1.10113203,906.95,905.88,1.622]
[1764793017501,1.10113203,906.96,905.88,1.622]
[1764793019299,1.10113203,906.97,905.88,1.622]
[1764793019504,1.10113203,906.98,905.88,1.622]
[1764793019800,1.10113203,907.02,905.88,1.622]
[1764793020705,1.10113203,906.97,905.88,1.622]
[1764793021205,1.10113203,906.96,905.88,1.622]
[1764793021405,1.10113203,907.02,905.88,1.622]
[1764793021902,0.19190736,907.08,905.88,1.622]
[1764793022400,1.29303939,907.08,905.88,1.622]
[1764793022605,1.10113203,907.07,905.88,1.622]
[1764793023402,1.10113203,907.06,905.88,1.622]
[1764793023704,0.19190736,907.08,905.88,1.622]
[1764793024302,1.10113203,907.13,905.88,1.622]
[1764793024502,1.10113203,907.16,905.88,1.622]
[1764793024703,1.10113203,907.15,905.88,1.622]
[1764793025506,1.10113203,907.13,905.88,1.622]
[1764793026305,1.10113203,907.12,905.88,1.622]
[1764793027304,1.10113203,907.11,905.88,1.622]
[1764793027608,1.10113203,907.14,905.88,1.622]
[1764793028410,1.10113203,907.13,905.88,1.622]
[1764793028709,1.10113203,907.14,905.88,1.622]
[1764793029406,1.10113203,907.12,905.88,1.622]
[1764793029606,1.10113203,907.09,905.88,1.622]
[1764793030410,1.10113203,907.08,905.88,1.622]
[1764793031309,1.10113203,907.06,905.88,1.622]
[1764793031909,1.84361599,907.23,905.88,1.622]
[1764793031910,1.10113203,907.07,905.88,1.622]
[1764793032404,1.10113203,907.09,905.88,1.622]
[1764793032607,1.10113203,907.08,905.88,1.622]
[1764793033209,1.10113203,907.11,905.88,1.622]
[1764793033510,1.10113203,907.1,905.88,1.622]
[1764793033705,1.10113203,907.11,905.88,1.622]
[1764793034406,1.10113203,907.1,905.88,1.622]
[1764793034710,1.10113203,907.11,905.88,1.622]
[1764793035206,1.10113203,907.12,905.88,1.622]
[1764793035505,1.10113203,907.1,905.88,1.622]
[1764793036405,1.10113203,907.09,905.88,1.622]
[1764793037411,1.10113203,907.08,905.88,1.622]
[1764793038206,1.10113203,907.07,905.88,1.622]
[1764793038404,1.10113203,907.03,905.88,1.622]
[1764793039413,1.10113203,907.01,905.88,1.622]
[1764793040613,1.10113203,907.0,905.88,1.622]
[1764793041309,1.10113203,906.99,905.88,1.622]
[1764793042814,1.10113203,906.97,905.88,1.622]
[1764793048314,1.10113203,906.96,905.88,1.622]
[1764793048915,1.10113203,906.92,905.88,1.622]
[1764793049214,1.10113203,906.91,905.88,1.622]
[1764793049510,0.19191265,907.33,905.88,1.622]
[1764793049511,1.10113203,906.86,905.88,1.622]
[1764793049717,1.10113203,906.76,905.88,1.622]
[1764793050416,1.10113203,906.72,905.88,1.622]
[1764793053420,1.10113203,906.73,905.88,1.622]
[1764793054515,1.10113203,906.72,905.88,1.622]
[1764793054714,1.10113203,906.68,905.88,1.622]
[1764793055318,1.10113203,906.69,905.88,1.622]
[1764793056422,1.10113203,906.7,905.88,1.622]
[1764793057222,1.10113203,906.67,905.88,1.622]
[1764793057423,1.10113203,906.64,905.88,1.622]
[1764793058525,1.10113203,906.65,905.88,1.622]
[1764793059623,1.10113203,906.66,905.88,1.622]
[1764793059824,1.10113203,906.65,905.88,1.622]
[1764793060420,1.10113203,906.66,905.88,1.622]
[1764793064425,1.10113203,906.67,905.88,1.622]
[1764793064824,1.10113203,906.67,905.8,2.044]
[1764793066327,1.10113203,906.66,905.8,2.044]
[1764793067330,1.10113203,906.67,905.8,2.044]
[1764793067929,1.10113203,906.67,905.81,1.622]
[1764793070329,1.10113203,906.69,905.81,1.622]
[1764793073332,1.10113203,906.7,905.81,1.622]
[1764793077529,1.10113203,906.71,905.81,1.622]
[1764793080942,1.10113203,906.71,905.82,1.608]
[1764793082242,1.10113203,906.54,905.82,1.608]
[1764793082841,0.19191265,907.33,905.82,1.608]
[1764793082842,1.10113203,906.53,905.82,1.608]
[1764793083339,1.10113203,906.54,905.82,1.608]
[1764793085239,0.19191265,907.33,905.82,1.608]
[1764793085240,1.10113203,906.47,905.82,1.608]
[1764793085444,1.10113203,906.45,905.82,1.608]
[1764793086340,1.10113203,906.44,905.82,1.608]
[1764793086545,1.10113203,906.4,905.82,1.608]
[1764793087244,1.10113203,906.41,905.82,1.608]
[1764793088246,1.10113203,906.42,905.82,1.608]
[1764793088742,1.10113203,906.41,905.82,1.608]
[1764793089148,1.10113203,906.42,905.82,1.608]
[1764793089546,1.10113203,906.43,905.82,1.608]
[1764793090148,1.10113203,906.44,905.82,1.608]
[1764793091350,1.10113203,906.45,905.82,1.608]
[1764793092846,1.10113203,906.45,905.83,2.015]
[1764793093248,1.10113203,906.46,905.83,2.015]
[1764793093454,1.10113203,906.45,905.83,2.015]
[1764793094148,1.10113203,906.46,905.83,2.015]
[1764793094352,1.10113203,906.45,905.83,2.015]
[1764793094854,1.10113203,906.52,905.83,2.015]
[1764793095352,1.10113203,906.51,905.83,2.015]
[1764793098248,1.10113203,906.5,905.83,2.015]
[1764793100347,1.10113203,906.49,905.83,2.015]
[1764793101451,1.10113203,906.43,905.83,2.015]
[1764793102449,1.10113203,906.42,905.83,2.015]
[1764793104253,1.10113203,906.41,905.83,2.015]
[1764793105553,1.10113203,906.4,905.83,2.015]
[1764793106253,1.10113203,906.38,905.83,2.015]
[1764793106450,1.10113203,906.37,905.83,2.015]
[1764793107253,1.10113203,906.36,905.83,2.015]
[1764793107753,1.10113203,906.37,905.83,2.015]
[1764793108249,1.10113203,906.36,905.83,2.015]
[1764793109249,1.10113203,906.35,905.83,2.015]
[1764793109854,1.10113203,906.35,905.27,0.1920445]
[1764793110449,1.10113203,906.34,905.27,0.1920445]
[1764793112352,1.10113203,906.34,905.28,2.22]
[1764793112955,1.10113203,906.34,905.29,1.48]
[1764793114254,1.10113203,906.33,905.29,1.48]
[1764793114754,1.10113203,906.38,905.29,1.48]
[1764793114954,1.10113203,906.39,905.29,1.48]
[1764793115255,1.10113203,906.4,905.29,1.48]
[1764793115754,1.10113203,906.42,905.29,1.48]
[1764793115957,1.10113203,906.47,905.29,1.48]
[1764793116154,1.10113203,906.5,905.29,1.48]
[1764793116359,1.10113203,906.55,905.3,1.09545645]
[1764793116655,1.10113203,906.54,905.3,1.09545645]
[1764793117258,1.10113203,906.54,905.31,1.09545645]
[1764793118962,1.10113203,906.55,905.32,1.09545645]
[1764793119357,1.10113203,906.62,905.39,1.09545645]
[1764793119562,1.10113203,906.64,905.41,1.09545645]
[1764793120257,1.10113203,906.65,905.42,1.09545645]
[1764793120558,1.10113203,906.66,905.43,1.09545645]
[1764793120762,1.10113203,906.68,905.45,1.09545645]
[1764793124260,1.10113203,906.68,905.44,1.09545645]
[1764793124465,1.10113203,906.68,905.45,1.09545645]
[1764793125164,1.10113203,906.68,905.44,1.09545645]
[1764793129064,1.10113203,906.9,905.65,1.09545645]
[1764793129264,1.10113203,906.91,905.64,1.09545645]
[1764793130167,1.10113203,906.91,905.62,1.09545645]
[1764793130369,1.10113203,906.87,905.58,1.09545645]
[1764793130568,1.10113203,906.81,905.52,1.09545645]
[1764793131266,1.10113203,906.82,905.52,1.09545645]
[1764793133368,1.10113203,906.82,905.51,1.09545645]
[1764793134274,1.10113203,906.84,905.52,1.09545645]
[1764793134871,1.10113203,906.89,905.57,1.09545645]
[1764793135071,1.10113203,906.98,905.66,1.09545645]
[1764793135269,1.10113203,907.01,905.66,1.09545645]
[1764793135672,1.10113203,907.0,905.66,1.09545645]
[1764793136373,1.10113203,907.01,905.65,1.09545645]
[1764793137073,1.10113203,907.02,905.66,1.09545645]
[1764793137270,1.10113203,907.04,905.65,1.09545645]
[1764793137468,1.10113203,907.03,905.64,1.09545645]
[1764793137673,1.10113203,907.04,905.65,1.09545645]
[1764793137969,1.10113203,907.04,905.49,1.64318467]
[1764793137970,1.10113203,907.03,905.64,1.09545645]
[1764793138169,1.10113203,907.04,905.63,1.09545645]
[1764793139277,1.10113203,907.05,905.62,1.09545645]
[1764793140574,1.10113203,907.14,905.68,1.09545645]
[1764793141278,1.10113203,907.15,905.67,1.09545645]
[1764793142276,1.10113203,907.17,905.66,1.09545645]
[1764793143280,1.8436107,907.33,905.29,1.48]
[1764793143281,1.10113203,907.18,905.64,1.09545645]
[1764793144279,1.10113203,907.19,905.63,1.09545645]
[1764793148283,1.10113203,907.21,905.6,1.09545645]
[1764793149592,1.10113203,907.27,905.65,1.09545645]
[1764793150186,1.10113203,907.31,905.68,1.09545645]
[1764793150381,1.29304468,907.33,905.7,1.09545645]
[1764793151381,1.29304468,907.33,905.29,1.48]
[1764793151382,1.29304468,907.33,905.69,1.09545645]
[1764793152185,0.19191265,907.33,905.69,1.09545645]
[1764793153185,0.19191265,907.33,905.68,1.09545645]
[1764793154585,0.19191265,907.33,905.69,1.415]
[1764793157487,0.19191265,907.33,905.73,1.09545645]
[1764793158288,1.10113203,907.43,905.72,1.09545645]
[1764793158485,1.10113203,907.46,905.75,1.09545645]
[1764793158790,1.29301875,907.46,905.75,1.09545645]
[1764793159188,0.19188672,907.46,905.79,1.09545645]
[1764793159385,0.19188672,907.46,905.84,1.09545645]
[1764793160388,0.19188672,907.46,905.85,1.09545645]
[1764793160890,1.10113203,907.61,905.88,1.09545645]
[1764793161091,1.29298754,907.61,905.88,1.09545645]
[1764793161288,0.19185551,907.61,905.87,1.09545645]
[1764793161485,0.19185551,907.61,905.92,1.09545645]
[1764793162289,0.19185551,907.61,905.93,1.921]
[1764793170603,0.19185551,907.61,905.96,1.09545645]
[1764793170803,0.19185551,907.61,905.95,1.09545645]
[1764793171300,0.19185551,907.61,905.99,1.09545645]
[1764793171905,0.19185551,907.61,906.0,1.424]
[1764793172204,0.19185551,907.61,906.01,1.09545645]
[1764793172405,0.19185551,907.61,906.0,2.51945645]
[1764793174302,0.19185551,907.61,906.01,1.09545645]
[1764793175207,0.19185551,907.61,906.02,1.09545645]
[1764793176305,0.19185551,907.61,906.03,1.09545645]
[1764793176508,0.19185551,907.61,906.0,1.424]
[1764793179113,0.19185551,907.61,906.0,2.51945645]
[1764793179310,0.19185551,907.61,906.0,1.424]
[1764793180114,0.19185551,907.61,906.0,2.51945645]
[1764793180711,1.10113203,907.55,906.0,1.424]
[1764793181512,1.29298754,907.61,906.0,1.424]
[1764793183212,1.29298754,907.61,906.0,2.51945645]
[1764793184207,0.19185551,907.61,906.04,1.09545645]
[1764793185114,0.19185551,907.61,906.05,1.09545645]
[1764793185313,0.19185551,907.61,906.0,1.424]
[1764793185314,0.19185551,907.61,906.07,1.09545645]
[1764793186212,0.19185551,907.61,906.11,1.09545645]
[1764793186516,0.19185551,907.61,906.1,1.09545645]
[1764793187211,0.19185551,907.61,906.11,1.09545645]
[1764793188217,0.19185551,907.61,906.13,1.09545645]
[1764793189416,0.19185551,907.61,906.14,1.09545645]
[1764793191016,1.10113203,907.66,906.15,1.09545645]
[1764793191213,1.10113203,907.72,906.23,1.09545645]
[1764793192418,1.10113203,907.75,906.26,1.09545645]
[1764793192618,0.19182379,907.76,906.29,1.09545645]
[1764793192818,0.19182379,907.76,906.39,1.09545645]
[1764793194218,0.19182379,907.76,906.4,1.09545645]
[1764793194924,0.19182379,907.76,906.38,1.09545645]
[1764793195120,0.19182379,907.76,906.39,1.09545645]
[1764793195324,0.19182379,907.76,906.38,1.09545645]
[1764793195725,0.19182379,907.76,906.37,1.09545645]
[1764793198126,0.19182379,907.76,906.38,1.633]
[1764793200528,1.10113203,907.95,906.46,1.09545645]
[1764793200724,1.10113203,907.94,906.49,1.09545645]
[1764793200928,1.10113203,907.98,906.49,1.09545645]
[1764793201323,1.10113203,907.97,906.47,1.09545645]
[1764793202132,1.10113203,907.97,906.48,1.09545645]
[1764793202425,1.10113203,907.98,906.47,1.09545645]
[1764793203426,1.10113203,907.94,906.43,1.09545645]
[1764793203827,1.10113203,907.93,906.42,1.09545645]
[1764793205328,1.10113203,907.92,906.42,1.09545645]
[1764793206232,1.10113203,907.92,906.43,1.09545645]
[1764793207133,1.10113203,907.89,906.4,1.09545645]
[1764793208335,1.10113203,907.87,906.4,1.09545645]
[1764793208937,1.10113203,907.87,906.57,0.81742054]
[1764793209235,1.10113203,907.86,906.58,0.81742054]
[1764793209436,1.10113203,907.85,906.56,0.81742054]
[1764793209736,1.10113203,907.83,906.54,0.81742054]
[1764793210237,1.10113203,907.82,906.55,0.81742054]
[1764793211233,1.10113203,907.81,906.55,0.81742054]
[1764793212339,1.10113203,907.81,906.56,0.81742054]
[1764793213034,1.10113203,907.82,906.58,0.81742054]
[1764793213240,1.10113203,907.81,906.58,0.81742054]
[1764793214340,1.10113203,907.8,906.59,0.81742054]
[1764793214736,0.19177569,907.99,906.38,1.633]
[1764793214737,1.10113203,907.84,906.63,0.81742054]
[1764793214936,1.10113203,907.85,906.64,0.81742054]
[1764793215140,1.10113203,907.88,906.67,0.81742054]
[1764793215340,1.10113203,907.88,906.68,0.81742054]
[1764793216238,1.10113203,907.87,906.69,0.81742054]
[1764793217243,1.10113203,907.87,906.52,1.09545645]
[1764793217244,1.10113203,907.86,906.7,0.81742054]
[1764793217440,1.10113203,907.88,906.72,0.81742054]
[1764793217639,1.10113203,907.89,906.73,0.81742054]
[1764793217841,1.10113203,907.95,906.79,0.81742054]
[1764793218044,1.10113203,907.94,906.78,0.81742054]
[1764793218544,1.10113203,907.97,906.81,0.81742054]
[1764793222241,1.10113203,907.97,906.8,0.81742054]
[1764793222945,1.29290772,907.99,906.82,0.81742054]
[1764793223345,1.29290772,907.99,906.81,0.81742054]
[1764793224243,0.19177569,907.99,906.81,0.81742054]
[1764793224447,1.10113203,908.0,906.81,0.81742054]
[1764793225851,1.10113203,908.06,906.86,0.81742054]
[1764793228350,1.10113203,908.07,906.86,0.81742054]
[1764793229250,1.10113203,908.07,906.85,0.81742054]
[1764793232456,1.10113203,908.08,906.86,0.81742054]
[1764793232953,1.10113203,908.09,906.87,0.81742054]
[1764793234058,1.10113203,908.05,906.82,0.81742054]
[1764793234258,1.10113203,907.98,906.75,9.25194524]
[1764793235159,1.10113203,907.98,906.76,1.882]
[1764793235456,1.10113203,907.97,906.76,1.882]
[1764793237156,1.10113203,907.97,906.76,2.69942054]
[1764793238263,1.10113203,907.96,906.76,2.69942054]
[1764793239059,1.10113203,907.96,906.76,1.882]
[1764793239260,1.10113203,907.95,906.76,1.882]
[1764793239658,1.10113203,907.95,906.77,2.042]
[1764793241161,1.10113203,907.94,906.77,2.042]
[1764793241361,1.10113203,907.93,906.77,2.042]
[1764793241762,0.19172973,908.12,906.77,2.042]
[1764793241763,1.10113203,907.92,906.77,2.042]
[1764793241963,1.10113203,907.91,906.77,2.042]
[1764793242164,1.10113203,907.88,906.77,2.042]
[1764793242462,1.10113203,907.87,906.77,2.042]
[1764793242959,1.10113203,907.82,906.77,2.042]
[1764793243262,1.10113203,907.81,906.77,2.042]
[1764793244163,1.10113203,907.8,906.77,2.042]
[1764793245260,1.10113203,907.79,906.77,2.042]
[1764793246166,1.10113203,907.81,906.77,2.042]
[1764793246363,1.10113203,907.8,906.77,2.042]
[1764793247268,1.10113203,907.79,906.77,2.042]
[1764793247668,1.10113203,907.78,906.77,2.042]
[1764793248365,1.10113203,907.77,906.77,2.042]
[1764793248970,1.10113203,907.76,906.77,2.042]
[1764793249271,1.10113203,907.75,906.77,2.042]
[1764793249470,1.10113203,907.73,906.77,2.042]
[1764793250169,1.10113203,907.72,906.77,2.042]
[1764793251070,1.10113203,907.71,906.77,2.042]
[1764793251266,1.10113203,907.7,906.77,2.042]
[1764793251669,1.10113203,907.71,906.77,2.042]
[1764793253969,1.10113203,907.7,906.77,2.042]
[1764793254370,1.10113203,907.69,906.77,2.042]
[1764793255571,1.10113203,907.61,906.77,2.042]
[1764793256568,1.10113203,907.57,906.77,2.042]
[1764793257868,1.10113203,907.56,906.77,2.042]
[1764793258070,1.10113203,907.51,906.77,2.042]
[1764793258270,1.10113203,907.48,906.77,2.042]
[1764793259176,1.10113203,907.49,906.77,2.042]
[1764793260379,1.10113203,907.48,906.77,2.042]
[1764793260575,1.65169805,907.64,906.77,2.042]
[1764793260576,1.10113203,907.38,906.77,2.042]
[1764793260878,1.10113203,907.37,906.77,2.042]
[1764793261279,1.10113203,907.39,906.77,2.042]
[1764793261680,1.10113203,907.4,906.77,2.042]
[1764793261981,1.10113203,907.41,906.77,2.042]
[1764793262177,1.10113203,907.43,906.77,2.042]
[1764793262579,1.10113203,907.44,906.77,2.042]
[1764793262973,1.10113203,907.43,906.77,2.042]
[1764793263174,1.10113203,907.44,906.77,2.042]
[1764793263380,1.10113203,907.42,906.77,2.042]
[1764793264077,1.10113203,907.43,906.77,2.042]